[Event "Early-Titled-Tuesday-Blitz-December-26-2023"]
[Site "Chess.com"]
[Date "2023.12.26"]
[Round "2"]
[White "BilodeauA"]
[Black "GiorgianBarbosa"]
[Result "1-0"]
[WhiteElo "2886"]
[BlackElo "2507"]
[TimeControl "180+1"]
[EndTime "8:17:28 PST"]
[Termination "BilodeauA won by resignation"]

1. e4 {[%clk 0:03:00.9]} 1... c5 {[%clk 0:02:59.4]} 2. Nf3 {[%clk 0:03:01.3]}
2... g6 {[%clk 0:02:59.9]} 3. c3 {[%clk 0:02:58.8]} 3... Bg7 {[%clk 0:02:59.5]}
4. d4 {[%clk 0:02:57.6]} 4... cxd4 {[%clk 0:03:00.4]} 5. cxd4 {[%clk 0:02:58.4]}
5... d5 {[%clk 0:03:01]} 6. e5 {[%clk 0:02:58.8]} 6... Bg4 {[%clk 0:03:00.5]} 7.
Bb5+ {[%clk 0:02:58]} 7... Nd7 {[%clk 0:02:59.2]} 8. h3 {[%clk 0:02:56.6]} 8...
Bxf3 {[%clk 0:02:58.6]} 9. Qxf3 {[%clk 0:02:56.7]} 9... e6 {[%clk 0:02:59.1]}
10. Nc3 {[%clk 0:02:51.6]} 10... Ne7 {[%clk 0:02:58.6]} 11. Bg5 {[%clk
0:02:50.4]} 11... O-O {[%clk 0:02:58.7]} 12. O-O {[%clk 0:02:46.3]} 12... a6
{[%clk 0:02:51.5]} 13. Bd3 {[%clk 0:02:43.2]} 13... b5 {[%clk 0:02:51.4]} 14.
Qf4 {[%clk 0:02:38.2]} 14... Nb6 {[%clk 0:02:46.8]} 15. Qh4 {[%clk 0:02:35.8]}
15... Ra7 {[%clk 0:02:43.5]} 16. Rac1 {[%clk 0:02:31.5]} 16... Qd7 {[%clk
0:02:30.4]} 17. Ne2 {[%clk 0:02:23.4]} 17... Rc8 {[%clk 0:02:08.6]} 18. Bf6
{[%clk 0:02:21.1]} 18... Rac7 {[%clk 0:01:46.6]} 19. Rxc7 {[%clk 0:02:20.4]}
19... Rxc7 {[%clk 0:01:46.2]} 20. Nf4 {[%clk 0:02:21]} 20... Nc4 {[%clk
0:01:39.7]} 21. b3 {[%clk 0:01:58.8]} 21... Nd2 {[%clk 0:01:33.5]} 22. Bxg7
{[%clk 0:01:49.5]} 22... Kxg7 {[%clk 0:01:32.3]} 23. Nh5+ {[%clk 0:01:49.7]}
23... gxh5 {[%clk 0:01:20.6]} 24. Qg5+ {[%clk 0:01:43.4]} 24... Ng6 {[%clk
0:01:18.5]} 25. Qxd2 {[%clk 0:01:44.3]} 25... Qe7 {[%clk 0:01:10.4]} 26. Re1
{[%clk 0:01:36.8]} 26... Qh4 {[%clk 0:01:08.7]} 27. Bf1 {[%clk 0:01:33.8]} 27...
Qf4 {[%clk 0:01:04.4]} 28. Re3 {[%clk 0:01:33.9]} 28... h4 {[%clk 0:00:57]} 29.
Qd1 {[%clk 0:01:31.6]} 29... Qg5 {[%clk 0:00:52.1]} 30. a4 {[%clk 0:01:27.7]}
30... bxa4 {[%clk 0:00:49.4]} 31. bxa4 {[%clk 0:01:28.6]} 31... a5 {[%clk
0:00:50]} 32. Qe1 {[%clk 0:01:01.4]} 32... Nf4 {[%clk 0:00:45]} 33. Kh2 {[%clk
0:00:53.4]} 33... Rc2 {[%clk 0:00:39]} 34. Rf3 {[%clk 0:00:46.3]} 34... Nh5
{[%clk 0:00:14.1]} 35. Qxa5 {[%clk 0:00:33.2]} 35... Rc1 {[%clk 0:00:14.1]} 36.
Qb5 {[%clk 0:00:24.7]} 36... Ra1 {[%clk 0:00:12.1]} 37. a5 {[%clk 0:00:24]}
37... Qc1 {[%clk 0:00:10.6]} 38. a6 {[%clk 0:00:17.6]} 38... Qxf1 {[%clk
0:00:08.1]} 39. Qxf1 {[%clk 0:00:18.2]} 39... Rxf1 {[%clk 0:00:07.9]} 40. Ra3
{[%clk 0:00:18.9]} 40... Rxf2 {[%clk 0:00:08]} 41. a7 {[%clk 0:00:19.2]} 41...
Rf1 {[%clk 0:00:07.6]} 42. a8=Q {[%clk 0:00:18.6]} 42... Ng3 {[%clk 0:00:07.8]}
43. Rxg3+ {[%clk 0:00:19.3]} 43... hxg3+ {[%clk 0:00:08.2]} 44. Kxg3 {[%clk
0:00:20.2]} 44... Rd1 {[%clk 0:00:07.7]} 45. Qa4 {[%clk 0:00:20]} 45... Rd3+
{[%clk 0:00:07.6]} 46. Kh2 {[%clk 0:00:20.5]} 46... Re3 {[%clk 0:00:06.9]} 47.
Qb4 {[%clk 0:00:16.8]} 47... Re4 {[%clk 0:00:07.1]} 48. Qd2 {[%clk 0:00:17.1]}
1-0

[Event "Early-Titled-Tuesday-Blitz-December-26-2023"]
[Site "Chess.com"]
[Date "2023.12.26"]
[Round "2"]
[White "Sanyura"]
[Black "mbojan"]
[Result "1-0"]
[WhiteElo "2632"]
[BlackElo "2909"]
[TimeControl "180+1"]
[EndTime "8:17:32 PST"]
[Termination "Sanyura won by resignation"]

1. e4 {[%clk 0:03:00.9]} 1... a6 {[%clk 0:02:59.8]} 2. d4 {[%clk 0:03:00.5]}
2... e6 {[%clk 0:03:00.3]} 3. Nf3 {[%clk 0:03:00.4]} 3... d5 {[%clk 0:03:00.6]}
4. Nc3 {[%clk 0:03:00.1]} 4... Nf6 {[%clk 0:03:00.6]} 5. Bg5 {[%clk 0:02:58.8]}
5... Be7 {[%clk 0:02:56.4]} 6. e5 {[%clk 0:02:58]} 6... Nfd7 {[%clk 0:02:56.2]}
7. h4 {[%clk 0:02:57.8]} 7... c5 {[%clk 0:02:55.8]} 8. Bd3 {[%clk 0:02:54.7]}
8... cxd4 {[%clk 0:02:51.4]} 9. Ne2 {[%clk 0:02:54.6]} 9... Nc6 {[%clk
0:02:51.5]} 10. Nexd4 {[%clk 0:02:39.6]} 10... Nxd4 {[%clk 0:02:45.7]} 11. Nxd4
{[%clk 0:02:40.5]} 11... Nxe5 {[%clk 0:02:04.1]} 12. Qh5 {[%clk 0:02:06.7]}
12... Bxg5 {[%clk 0:01:31.5]} 13. hxg5 {[%clk 0:02:05.9]} 13... Qb6 {[%clk
0:01:25.7]} 14. O-O-O {[%clk 0:02:01.1]} 14... Bd7 {[%clk 0:01:02.6]} 15. c3
{[%clk 0:01:46.2]} 15... g6 {[%clk 0:00:54.4]} 16. Qe2 {[%clk 0:01:41.2]} 16...
Nc6 {[%clk 0:00:41.2]} 17. Bc2 {[%clk 0:01:33.5]} 17... O-O-O {[%clk 0:00:36.8]}
18. f4 {[%clk 0:01:30.7]} 18... Kb8 {[%clk 0:00:37.1]} 19. g3 {[%clk 0:01:31]}
19... Ka8 {[%clk 0:00:36.4]} 20. Rh2 {[%clk 0:01:30.4]} 20... Nxd4 {[%clk
0:00:34.5]} 21. Rxd4 {[%clk 0:01:29.6]} 21... Rc8 {[%clk 0:00:34.5]} 22. Qe5
{[%clk 0:01:27]} 22... Qc7 {[%clk 0:00:22.7]} 23. Qxc7 {[%clk 0:01:25.8]} 23...
Rxc7 {[%clk 0:00:23.6]} 24. Rh6 {[%clk 0:01:26.1]} 24... Rcc8 {[%clk 0:00:16.5]}
25. Kd2 {[%clk 0:01:26.3]} 25... Kb8 {[%clk 0:00:16.3]} 26. Ke3 {[%clk
0:01:26.1]} 26... Kc7 {[%clk 0:00:15.5]} 27. Rd1 {[%clk 0:01:26.6]} 27... Rcg8
{[%clk 0:00:15.7]} 28. Rdh1 {[%clk 0:01:26.6]} 28... Rg7 {[%clk 0:00:16.3]} 29.
Kd4 {[%clk 0:01:27.2]} 29... Kd6 {[%clk 0:00:16.5]} 30. a4 {[%clk 0:01:25.8]}
30... a5 {[%clk 0:00:16.7]} 31. b3 {[%clk 0:01:24.5]} 31... b6 {[%clk
0:00:16.2]} 32. Rb1 {[%clk 0:01:21.5]} 32... Bc6 {[%clk 0:00:10.6]} 33. b4
{[%clk 0:01:12.3]} 33... Rc8 {[%clk 0:00:08.3]} 34. bxa5 {[%clk 0:01:10.9]}
34... bxa5 {[%clk 0:00:09.2]} 35. Rb6 {[%clk 0:01:11.2]} 35... Kc7 {[%clk
0:00:08.5]} 36. Ra6 {[%clk 0:01:09.9]} 36... Kb7 {[%clk 0:00:08.3]} 37. Rxa5
{[%clk 0:01:10.4]} 37... Bd7 {[%clk 0:00:05.3]} 38. Rc5 {[%clk 0:01:10.5]} 38...
Rxc5 {[%clk 0:00:04]} 39. Kxc5 {[%clk 0:01:11.4]} 39... Kc7 {[%clk 0:00:04.9]}
40. a5 {[%clk 0:01:10.5]} 40... Bc8 {[%clk 0:00:05.4]} 41. Bd3 {[%clk
0:01:10.2]} 41... Bb7 {[%clk 0:00:06]} 42. a6 {[%clk 0:01:10.3]} 42... Ba8
{[%clk 0:00:06.6]} 43. Rh2 {[%clk 0:01:06.5]} 43... Bc6 {[%clk 0:00:03.9]} 44.
a7 {[%clk 0:01:05.3]} 44... Ba8 {[%clk 0:00:03.2]} 45. Kd4 {[%clk 0:01:01]}
45... Rg8 {[%clk 0:00:01.9]} 46. Rxh7 {[%clk 0:01:00.2]} 46... Kd6 {[%clk
0:00:02.5]} 47. Rxf7 {[%clk 0:00:59.7]} 47... Rh8 {[%clk 0:00:03]} 48. Bb5
{[%clk 0:00:58.5]} 48... e5+ {[%clk 0:00:02.6]} 49. fxe5+ {[%clk 0:00:58.6]}
49... Ke6 {[%clk 0:00:03.5]} 50. Rf6+ {[%clk 0:00:59]} 50... Ke7 {[%clk
0:00:04]} 51. Bc6 {[%clk 0:00:59]} 51... Bxc6 {[%clk 0:00:03.3]} 52. Rxc6 {[%clk
0:00:59.9]} 52... Ra8 {[%clk 0:00:03.8]} 53. Rc7+ {[%clk 0:01:00.2]} 53... Ke6
{[%clk 0:00:04.7]} 54. g4 {[%clk 0:00:57.7]} 54... Rxa7 {[%clk 0:00:03.9]} 55.
Rc6+ {[%clk 0:00:53.8]} 55... Kf7 {[%clk 0:00:04.7]} 56. Kxd5 {[%clk 0:00:53.4]}
56... Ra3 {[%clk 0:00:05.3]} 57. Rc7+ {[%clk 0:00:52.5]} 57... Kf8 {[%clk
0:00:05.9]} 58. Kd6 {[%clk 0:00:50.6]} 58... Ra6+ {[%clk 0:00:06.6]} 59. Rc6
{[%clk 0:00:50.8]} 59... Ra4 {[%clk 0:00:06.2]} 60. c4 {[%clk 0:00:50.1]} 60...
Ra7 {[%clk 0:00:03.2]} 61. Ke6 {[%clk 0:00:50.2]} 61... Re7+ {[%clk 0:00:03.2]}
62. Kf6 {[%clk 0:00:50.4]} 62... Rf7+ {[%clk 0:00:03.7]} 63. Kxg6 {[%clk
0:00:50.8]} 63... Re7 {[%clk 0:00:04.4]} 64. Rc8+ {[%clk 0:00:49.8]} 64... Re8
{[%clk 0:00:04.9]} 65. Rxe8+ {[%clk 0:00:50.2]} 65... Kxe8 {[%clk 0:00:05.8]}
66. Kf6 {[%clk 0:00:50.4]} 1-0

[Event "Early-Titled-Tuesday-Blitz-December-26-2023"]
[Site "Chess.com"]
[Date "2023.12.26"]
[Round "2"]
[White "biostatistician"]
[Black "jacky72"]
[Result "0-1"]
[WhiteElo "2585"]
[BlackElo "2828"]
[TimeControl "180+1"]
[EndTime "8:17:35 PST"]
[Termination "jacky72 won on time"]

1. d4 {[%clk 0:03:00]} 1... Nf6 {[%clk 0:02:56.6]} 2. Nf3 {[%clk 0:02:59.4]}
2... e6 {[%clk 0:02:56.8]} 3. c4 {[%clk 0:02:59.4]} 3... c5 {[%clk 0:02:56.4]}
4. e3 {[%clk 0:02:59]} 4... d5 {[%clk 0:02:55.5]} 5. Nc3 {[%clk 0:02:58.8]} 5...
cxd4 {[%clk 0:02:53.9]} 6. exd4 {[%clk 0:02:58.7]} 6... Nc6 {[%clk 0:02:54.4]}
7. cxd5 {[%clk 0:02:55.8]} 7... exd5 {[%clk 0:02:54.1]} 8. Bb5 {[%clk
0:02:55.7]} 8... Be7 {[%clk 0:02:50.2]} 9. Ne5 {[%clk 0:02:54.8]} 9... Bd7
{[%clk 0:02:47]} 10. O-O {[%clk 0:02:48.9]} 10... O-O {[%clk 0:02:46]} 11. Qa4
{[%clk 0:02:47.9]} 11... Qc7 {[%clk 0:02:38.1]} 12. Bf4 {[%clk 0:02:44.4]} 12...
Bd6 {[%clk 0:02:38.3]} 13. Rac1 {[%clk 0:02:40.1]} 13... a6 {[%clk 0:02:29.8]}
14. Bxc6 {[%clk 0:02:38.4]} 14... Bxc6 {[%clk 0:02:30.4]} 15. Qb3 {[%clk
0:02:25.4]} 15... Rfe8 {[%clk 0:02:30.9]} 16. Bg3 {[%clk 0:02:15.7]} 16... Rac8
{[%clk 0:02:21.2]} 17. Rfe1 {[%clk 0:01:54.5]} 17... h6 {[%clk 0:02:07.2]} 18.
h3 {[%clk 0:01:50]} 18... Re6 {[%clk 0:02:00.5]} 19. Nxc6 {[%clk 0:01:23.9]}
19... Rxe1+ {[%clk 0:01:57.2]} 20. Rxe1 {[%clk 0:01:24.8]} 20... bxc6 {[%clk
0:01:56.2]} 21. Bxd6 {[%clk 0:01:20.9]} 21... Qxd6 {[%clk 0:01:57.1]} 22. Qb7
{[%clk 0:01:18.6]} 22... Rb8 {[%clk 0:01:57]} 23. Qxa6 {[%clk 0:01:18.3]} 23...
Rxb2 {[%clk 0:01:57.6]} 24. Re2 {[%clk 0:00:54.2]} 24... Rb4 {[%clk 0:01:50.6]}
25. Qc8+ {[%clk 0:00:46.7]} 25... Kh7 {[%clk 0:01:50.2]} 26. Qf5+ {[%clk
0:00:47.2]} 26... g6 {[%clk 0:01:49.9]} 27. Qd3 {[%clk 0:00:47.7]} 27... Kg7
{[%clk 0:01:42.3]} 28. g3 {[%clk 0:00:47.8]} 28... c5 {[%clk 0:01:42.3]} 29.
dxc5 {[%clk 0:00:46.1]} 29... Qxc5 {[%clk 0:01:43.2]} 30. Kg2 {[%clk 0:00:44.5]}
30... Rc4 {[%clk 0:01:40]} 31. Nd1 {[%clk 0:00:40.3]} 31... Rd4 {[%clk
0:01:34.7]} 32. Qc3 {[%clk 0:00:36.8]} 32... Qxc3 {[%clk 0:01:28.3]} 33. Nxc3
{[%clk 0:00:36.8]} 33... Rc4 {[%clk 0:01:29]} 34. Nb5 {[%clk 0:00:34.3]} 34...
Ne4 {[%clk 0:01:27.3]} 35. f3 {[%clk 0:00:31.7]} 35... Ng5 {[%clk 0:01:18.9]}
36. Rd2 {[%clk 0:00:29.4]} 36... Rc5 {[%clk 0:01:13.8]} 37. a4 {[%clk 0:00:29]}
37... Ne6 {[%clk 0:01:13.1]} 38. Ra2 {[%clk 0:00:27.7]} 38... d4 {[%clk
0:01:11.8]} 39. Kf2 {[%clk 0:00:26.7]} 39... Kf6 {[%clk 0:01:10]} 40. Ke2 {[%clk
0:00:24.7]} 40... Rc1 {[%clk 0:01:08.9]} 41. a5 {[%clk 0:00:23.8]} 41... Nc5
{[%clk 0:00:37.1]} 42. a6 {[%clk 0:00:22.8]} 42... Rh1 {[%clk 0:00:37.8]} 43.
Ra3 {[%clk 0:00:15.6]} 43... d3+ {[%clk 0:00:36.1]} 44. Ke3 {[%clk 0:00:14.2]}
44... Rh2 {[%clk 0:00:30.1]} 45. a7 {[%clk 0:00:11.1]} 45... Re2+ {[%clk
0:00:30.1]} 46. Kd4 {[%clk 0:00:10.4]} 46... d2 {[%clk 0:00:30.4]} 47. Ra1
{[%clk 0:00:08.9]} 47... Re1 {[%clk 0:00:23.9]} 48. a8=Q {[%clk 0:00:08.6]}
48... Rxa1 {[%clk 0:00:24.6]} 49. Qh8+ {[%clk 0:00:02.1]} 49... Ke7 {[%clk
0:00:22.6]} 0-1

[Event "Early-Titled-Tuesday-Blitz-December-26-2023"]
[Site "Chess.com"]
[Date "2023.12.26"]
[Round "2"]
[White "PavelChernomordik"]
[Black "Hoshka"]
[Result "0-1"]
[WhiteElo "2435"]
[BlackElo "2037"]
[TimeControl "180+1"]
[EndTime "8:17:37 PST"]
[Termination "Hoshka won by checkmate"]

1. e4 {[%clk 0:03:00.9]} 1... e5 {[%clk 0:02:59.4]} 2. Nf3 {[%clk 0:03:00.5]}
2... Nc6 {[%clk 0:02:59.6]} 3. Bb5 {[%clk 0:03:00.4]} 3... a6 {[%clk 0:02:59.8]}
4. Ba4 {[%clk 0:03:00.1]} 4... Nf6 {[%clk 0:02:59.5]} 5. Nc3 {[%clk 0:03:00]}
5... Bc5 {[%clk 0:02:44.5]} 6. O-O {[%clk 0:02:55.4]} 6... d6 {[%clk 0:02:43.8]}
7. h3 {[%clk 0:02:52.1]} 7... h6 {[%clk 0:02:42.1]} 8. d3 {[%clk 0:02:50.6]}
8... O-O {[%clk 0:02:41.6]} 9. a3 {[%clk 0:02:46.4]} 9... Be6 {[%clk 0:02:29.5]}
10. Bxc6 {[%clk 0:02:41.1]} 10... bxc6 {[%clk 0:02:29.1]} 11. d4 {[%clk
0:02:41.2]} 11... exd4 {[%clk 0:02:20.8]} 12. Nxd4 {[%clk 0:02:40.6]} 12... Bxd4
{[%clk 0:02:19.9]} 13. Qxd4 {[%clk 0:02:38.1]} 13... c5 {[%clk 0:02:20.8]} 14.
Qd3 {[%clk 0:02:36.2]} 14... Qb8 {[%clk 0:02:11.9]} 15. b3 {[%clk 0:02:32.9]}
15... Qb7 {[%clk 0:02:02]} 16. Qf3 {[%clk 0:02:17.9]} 16... Nd7 {[%clk
0:01:46.1]} 17. Qg3 {[%clk 0:02:16.3]} 17... Kh8 {[%clk 0:01:44.5]} 18. f4
{[%clk 0:02:14.8]} 18... f5 {[%clk 0:01:41.3]} 19. e5 {[%clk 0:02:05.2]} 19...
d5 {[%clk 0:01:36.1]} 20. Qg6 {[%clk 0:02:03.7]} 20... Rae8 {[%clk 0:01:30.7]}
21. Bd2 {[%clk 0:01:59.2]} 21... d4 {[%clk 0:01:29.9]} 22. Na4 {[%clk
0:01:52.9]} 22... Qb5 {[%clk 0:01:12.3]} 23. Rae1 {[%clk 0:01:44.9]} 23... c4
{[%clk 0:01:05.4]} 24. Bb4 {[%clk 0:01:43.8]} 24... cxb3 {[%clk 0:01:01.8]} 25.
Nb2 {[%clk 0:01:32.1]} 25... bxc2 {[%clk 0:00:58.8]} 26. Bxf8 {[%clk 0:01:26.8]}
26... Nxf8 {[%clk 0:00:58.5]} 27. Qh5 {[%clk 0:01:26.6]} 27... d3 {[%clk
0:00:56.8]} 28. Rf2 {[%clk 0:01:13.9]} 28... Rd8 {[%clk 0:00:55.3]} 29. Nxd3
{[%clk 0:01:07.7]} 29... Qxd3 {[%clk 0:00:52.6]} 30. Qh4 {[%clk 0:01:02.8]}
30... Rd7 {[%clk 0:00:48.9]} 31. Rc1 {[%clk 0:00:56.7]} 31... Ng6 {[%clk
0:00:38.2]} 32. Qh5 {[%clk 0:00:52.3]} 32... Nxf4 {[%clk 0:00:28.4]} 33. Qe8+
{[%clk 0:00:50.6]} 33... Kh7 {[%clk 0:00:28]} 34. Rcxc2 {[%clk 0:00:42]} 34...
Qe3 {[%clk 0:00:10.1]} 35. Qa8 {[%clk 0:00:31.4]} 35... Rd1+ {[%clk 0:00:08.7]}
36. Kh2 {[%clk 0:00:31]} 36... Nh5 {[%clk 0:00:06.4]} 37. Qf3 {[%clk 0:00:20.8]}
37... Qxe5+ {[%clk 0:00:06.2]} 38. g3 {[%clk 0:00:20.8]} 38... Bd5 {[%clk
0:00:05.8]} 39. Qxd1 {[%clk 0:00:07]} 39... Qxg3# {[%clk 0:00:03.4]} 0-1

[Event "Early-Titled-Tuesday-Blitz-December-26-2023"]
[Site "Chess.com"]
[Date "2023.12.26"]
[Round "2"]
[White "Msb2"]
[Black "ukchessbomber"]
[Result "0-1"]
[WhiteElo "3012"]
[BlackElo "2675"]
[TimeControl "180+1"]
[EndTime "8:17:38 PST"]
[Termination "ukchessbomber won by checkmate"]

1. d4 {[%clk 0:03:00.9]} 1... b6 {[%clk 0:02:56.4]} 2. c4 {[%clk 0:03:00.2]}
2... Bb7 {[%clk 0:02:56.6]} 3. Nc3 {[%clk 0:03:00.9]} 3... e6 {[%clk 0:02:54.1]}
4. a3 {[%clk 0:03:01.4]} 4... Nf6 {[%clk 0:02:50.1]} 5. Bf4 {[%clk 0:03:01.2]}
5... Be7 {[%clk 0:02:46.7]} 6. d5 {[%clk 0:03:00]} 6... O-O {[%clk 0:02:46.6]}
7. Nf3 {[%clk 0:03:00.3]} 7... exd5 {[%clk 0:02:40]} 8. cxd5 {[%clk 0:03:01.2]}
8... Re8 {[%clk 0:02:40.3]} 9. e3 {[%clk 0:02:56.6]} 9... Na6 {[%clk 0:02:38.8]}
10. b4 {[%clk 0:02:54.1]} 10... Bd6 {[%clk 0:02:30.7]} 11. Bg3 {[%clk 0:02:32]}
11... Bxg3 {[%clk 0:02:10.6]} 12. hxg3 {[%clk 0:02:32.9]} 12... c5 {[%clk
0:02:11.3]} 13. dxc6 {[%clk 0:02:27.9]} 13... dxc6 {[%clk 0:02:12.2]} 14. Bd3
{[%clk 0:02:28.1]} 14... c5 {[%clk 0:02:08.2]} 15. b5 {[%clk 0:02:08.1]} 15...
Nc7 {[%clk 0:02:07.6]} 16. Qc2 {[%clk 0:02:08.7]} 16... h6 {[%clk 0:01:55.7]}
17. O-O {[%clk 0:02:07]} 17... Qe7 {[%clk 0:01:32.5]} 18. Rad1 {[%clk
0:02:05.3]} 18... Ncd5 {[%clk 0:00:58.5]} 19. Bc4 {[%clk 0:01:58.9]} 19... Rad8
{[%clk 0:00:56.1]} 20. Nxd5 {[%clk 0:01:55.5]} 20... Bxd5 {[%clk 0:00:54.2]} 21.
Bxd5 {[%clk 0:01:54]} 21... Nxd5 {[%clk 0:00:48.9]} 22. Rd3 {[%clk 0:01:54.1]}
22... Qe4 {[%clk 0:00:31.5]} 23. Qd2 {[%clk 0:01:43.2]} 23... Re7 {[%clk
0:00:29]} 24. Rd1 {[%clk 0:01:39.5]} 24... Red7 {[%clk 0:00:29.4]} 25. Qe1
{[%clk 0:01:28.9]} 25... Nf6 {[%clk 0:00:22.3]} 26. Rxd7 {[%clk 0:01:29.1]}
26... Rxd7 {[%clk 0:00:23.2]} 27. Rxd7 {[%clk 0:01:29.4]} 27... Nxd7 {[%clk
0:00:24.1]} 28. Qd1 {[%clk 0:01:30.3]} 28... Nf6 {[%clk 0:00:23.9]} 29. a4
{[%clk 0:01:12.8]} 29... Nd5 {[%clk 0:00:22.5]} 30. Ne1 {[%clk 0:01:08.8]} 30...
Nc3 {[%clk 0:00:19.8]} 31. Qd8+ {[%clk 0:01:03.4]} 31... Kh7 {[%clk 0:00:20]}
32. Nf3 {[%clk 0:01:02.8]} 32... Qxa4 {[%clk 0:00:14.8]} 33. Qd7 {[%clk
0:00:59.5]} 33... Qd1+ {[%clk 0:00:13.1]} 34. Qxd1 {[%clk 0:00:58.1]} 34... Nxd1
{[%clk 0:00:14]} 35. Ne5 {[%clk 0:00:59]} 35... Nc3 {[%clk 0:00:13.1]} 36. Nxf7
{[%clk 0:00:56.6]} 36... Nxb5 {[%clk 0:00:12.6]} 37. Ne5 {[%clk 0:00:57.5]}
37... Nc3 {[%clk 0:00:11.8]} 38. Kf1 {[%clk 0:00:55.2]} 38... a5 {[%clk
0:00:11.4]} 39. Nc4 {[%clk 0:00:55.6]} 39... a4 {[%clk 0:00:10.6]} 40. Ke1
{[%clk 0:00:51.2]} 40... b5 {[%clk 0:00:10.6]} 41. Na5 {[%clk 0:00:45.9]} 41...
a3 {[%clk 0:00:10.1]} 42. Kd2 {[%clk 0:00:46.5]} 42... b4 {[%clk 0:00:09.2]} 43.
Kd3 {[%clk 0:00:45]} 43... Kg6 {[%clk 0:00:06.5]} 44. Nb3 {[%clk 0:00:45.5]}
44... Na4 {[%clk 0:00:06.5]} 45. Nc1 {[%clk 0:00:42.2]} 45... Nb6 {[%clk
0:00:05.3]} 46. e4 {[%clk 0:00:38.4]} 46... c4+ {[%clk 0:00:05.5]} 47. Kd4
{[%clk 0:00:39.3]} 47... b3 {[%clk 0:00:05.9]} 48. Kc3 {[%clk 0:00:39.6]} 48...
b2 {[%clk 0:00:06]} 49. Kc2 {[%clk 0:00:39.2]} 49... bxc1=Q+ {[%clk 0:00:06.1]}
50. Kxc1 {[%clk 0:00:40.1]} 50... Kf6 {[%clk 0:00:06.7]} 51. f4 {[%clk
0:00:40.3]} 51... Ke6 {[%clk 0:00:07.1]} 52. Kb1 {[%clk 0:00:41.2]} 52... g5
{[%clk 0:00:07.5]} 53. Ka2 {[%clk 0:00:42.1]} 53... c3 {[%clk 0:00:05.1]} 54.
Kxa3 {[%clk 0:00:42.5]} 54... g4 {[%clk 0:00:03.3]} 55. Kb3 {[%clk 0:00:42.4]}
55... Na4 {[%clk 0:00:04]} 56. Kc2 {[%clk 0:00:42.8]} 56... Kd6 {[%clk
0:00:04.4]} 57. Kb3 {[%clk 0:00:43.4]} 57... Kc5 {[%clk 0:00:04.6]} 58. f5
{[%clk 0:00:44]} 58... Kd6 {[%clk 0:00:04.6]} 59. Kc2 {[%clk 0:00:44.7]} 59...
Ke5 {[%clk 0:00:04.6]} 60. Kb3 {[%clk 0:00:45.3]} 60... Nc5+ {[%clk 0:00:03.9]}
61. Kxc3 {[%clk 0:00:46]} 61... Nxe4+ {[%clk 0:00:04.5]} 62. Kd3 {[%clk
0:00:46.9]} 62... Nxg3 {[%clk 0:00:04.9]} 63. f6 {[%clk 0:00:47.6]} 63... Kxf6
{[%clk 0:00:05.3]} 64. Ke3 {[%clk 0:00:48.5]} 64... Kf5 {[%clk 0:00:05.8]} 65.
Kf2 {[%clk 0:00:49.2]} 65... Kf4 {[%clk 0:00:06.5]} 66. Kg1 {[%clk 0:00:49.9]}
66... h5 {[%clk 0:00:07.4]} 67. Kh2 {[%clk 0:00:50.6]} 67... h4 {[%clk
0:00:08.3]} 68. Kg1 {[%clk 0:00:51.5]} 68... Ne4 {[%clk 0:00:08.9]} 69. Kh2
{[%clk 0:00:52.4]} 69... Ke3 {[%clk 0:00:09.5]} 70. Kg1 {[%clk 0:00:53.3]} 70...
Ke2 {[%clk 0:00:09.7]} 71. Kh2 {[%clk 0:00:54.2]} 71... Kf2 {[%clk 0:00:10.3]}
72. Kh1 {[%clk 0:00:54.9]} 72... Kg3 {[%clk 0:00:10.9]} 73. Kg1 {[%clk
0:00:55.4]} 73... Nf2 {[%clk 0:00:11.2]} 74. Kf1 {[%clk 0:00:55.5]} 74... h3
{[%clk 0:00:11.9]} 75. Kg1 {[%clk 0:00:56.4]} 75... h2+ {[%clk 0:00:12.2]} 76.
Kf1 {[%clk 0:00:56.7]} 76... h1=Q+ {[%clk 0:00:12.8]} 77. Ke2 {[%clk 0:00:57.6]}
77... Qd1+ {[%clk 0:00:13.2]} 78. Ke3 {[%clk 0:00:58.5]} 78... Qd3# {[%clk
0:00:13.7]} 0-1